[Event "FRA-ch Teams Top 16-B 2022"]
[Site "Chartres"]
[Date "2022.06.10"]
[Round "2.10"]
[White "Kulaots, Kaido"]
[Black "Van Foreest, Jorden"]
[Result "0-1"]
[ECO "C84"]
[WhiteElo "2537"]
[BlackElo "2715"]
[Annotator "TA"]
[PlyCount "80"]
[EventDate "2022.06.09"]
[EventType "team-tourn"]
[EventCountry "FRA"]
[SourceTitle "playchess.com"]
[Source "ChessBase"]
[SourceQuality "1"]
[TimeControl "40/5400+30:1800+30"]

{[%evp 16,80,37,27,23,29,19,19,31,33,31,6,0,13,0,0,0,-3,-1,-11,-15,-10,-5,-12,-12,-21,-10,-16,-8,-18,-13,-15,0,0,0,0,-2,-20,-24,-29,-20,-26,-22,-169,-241,-236,-225,-253,-235,-206,-162,-170,-177,-170,-156,-153,-142,-229,-198,-173,-174,-488,-466,-434,-418,-683,-618]} 1. e4 {[%emt 0:00:51]} e5 {[%emt 0:00:19]} 2. Nf3 {[%emt 0:00:06]} Nc6 {[%emt 0:00:06]} 3. Bb5 {[%emt 0:00:16]} a6 {[%emt 0:00:10]} 4. Ba4 {[%emt 0:00:04]} d6 {[%emt 0:00:37]} 5. O-O {[%emt 0:01:32]} Bd7 {[%emt 0:00:14]} 6. d4 {[%emt 0:03:19]} Nf6 {[%emt 0:00:44]} 7. Bxc6 {[%emt 0:05:28]} Bxc6 {[%emt 0:01:08]} 8. Re1 {[%emt 0:05:21]} Be7 {[%emt 0:13:49]} 9. Nc3 {[%emt 0:01:04]} exd4 {[%emt 0:00:09] C84: Closed Ruy Lopez: Unusual White 6th moves.} 10. Nxd4 {[%emt 0:00:52]} Bd7 {[%emt 0:00:21]} 11. Qf3 {[%emt 0:02:25]} O-O {[%emt 0:00:14] The position is equal.} 12. h3 {[%emt 0:01:06] 12.h3 has lost popularity.} b5 {[%emt 0:00:06] [#]} 13. Nf5 $146 {[%emt 0:08:39]} ({Predecessor:} 13. a3 Re8 14. b3 Qc8 15. Bb2 Bf8 16. g4 h6 17. Kh2 Qb7 18. Nf5 Bxf5 19. gxf5 {0-1 (33) Vokhidov,S (2529)-Sindarov,J (2544) Tashkent 2021}) 13... Bxf5 {[%emt 0:06:32]} 14. Qxf5 {[%emt 0:00:48]} Re8 {[%emt 0:01:26]} 15. Bd2 {[%emt 0:11:23]} c6 {[%emt 0:02:32]} 16. Rad1 {[%emt 0:00:43]} Qc7 {[%emt 0:06:41]} 17. Ne2 {[%emt 0:21:45]} Bf8 {[%emt 0:01:58]} 18. Ng3 {[%emt 0:02:02]} (18. f3 {seems wilder.} d5 19. Bc3 Be7 20. Bd4) 18... Re6 {[%emt 0:00:19]} 19. Qf3 {[%emt 0:06:55]} Rae8 {[%emt 0:02:14]} 20. Bc3 {[%emt 0:01:37]} d5 {[%emt 0:15:31]} 21. exd5 {[%emt 0:03:15]} Nxd5 {[%emt 0:00:06]} 22. Rxe6 {[%emt 0:01:01]} Rxe6 {[%emt 0:00:05]} 23. Bd2 {[%emt 0:04:15]} g6 {[%emt 0:04:48]} 24. b3 {[%emt 0:03:29]} Qb6 {[%emt 0:10:41]} 25. Qd3 {[%emt 0:05:22]} Nb4 {[%emt 0:00:50]} 26. Bxb4 {[%emt 0:02:02]} Bxb4 {[%emt 0:00:07]} 27. Ne4 {[%emt 0:01:10]} Be7 {[%emt 0:00:28]} 28. c3 {[%emt 0:05:32]} Qc7 {[%emt 0:01:37]} 29. Qd4 {[%emt 0:01:10] White does not recover from this.} (29. Rd2 $11) 29... f5 $19 {[%emt 0:01:50]} 30. Nd2 {[%emt 0:00:31]} Bf6 $1 {[%emt 0:00:52]} 31. Qd3 {[%emt 0:01:10]} Rd6 {[%emt 0:00:07]} 32. Qc2 {[%emt 0:00:43]} Qd7 {[%emt 0:00:23] And now ...Bg5 would win.} 33. Kf1 {[%emt 0:00:18] [#]} Rd3 $1 $36 {[%emt 0:07:53][%mdl 2048] Black has strong initiative.} 34. c4 {[%emt 0:00:07]} Qd6 {[%emt 0:03:37]} 35. cxb5 {[%emt 0:01:05]} cxb5 {[%emt 0:02:50]} 36. a4 {[%emt 0:00:28]} (36. Ke2 $17 {was necessary.} Rc3 37. Qb1) 36... Qd5 {[%emt 0:02:02]} ({Weaker is} 36... Bc3 37. Ke2 Rxd2+ 38. Rxd2 Qe6+ 39. Kd1 Bxd2 40. Kxd2 $11) 37. axb5 {[%emt 0:00:22]} axb5 {[%emt 0:00:04]} 38. Qa2 $2 {[%emt 0:00:40]} (38. Ke1 {is a better chance.}) 38... Bc3 {[%emt 0:08:59]} 39. Ke2 {[%emt 0:00:18] [#]} Bb4 $1 {[%emt 0:00:02]} 40. f3 {[%emt 0:00:42]} (40. Qb2 $142) 40... Qd4 {[%emt 0:01:32] Weighted Error Value: White=0.29 (precise) /Black=0.04 (flawless)} 0-1

[Event "FRA-ch Teams Top 16-B 2022"]
[Site "Chartres"]
[Date "2022.06.10"]
[Round "2.11"]
[White "Amin, Bassem"]
[Black "Dionisi, Thomas"]
[Result "1-0"]
[ECO "C64"]
[WhiteElo "2686"]
[BlackElo "2408"]
[Annotator "TA"]
[PlyCount "97"]
[EventDate "2022.06.09"]
[EventType "team-tourn"]
[EventCountry "FRA"]
[SourceTitle "playchess.com"]
[Source "ChessBase"]
[SourceQuality "1"]
[TimeControl "40/5400+30:1800+30"]

{[%evp 10,97,41,33,31,38,31,36,43,28,33,23,26,38,31,20,28,22,16,40,23,32,22,37,37,37,41,16,35,0,0,0,6,14,5,12,222,220,233,227,217,214,211,156,166,154,158,165,169,175,218,216,201,208,210,223,226,239,209,204,205,211,289,275,378,375,370,352,357,306,382,381,516,473,440,418,394,373,1071,1071,1048,1048,1002,972,947,947,885,860,620,426]} 1. e4 {[%emt 0:00:56]} e5 {[%emt 0:01:06]} 2. Nf3 {[%emt 0:01:20]} Nc6 {[%emt 0:00:07]} 3. Bb5 {[%emt 0:00:06]} a6 {[%emt 0:00:18]} 4. Ba4 {[%emt 0:00:22]} Bc5 {[%emt 0:00:09]} 5. c3 {[%emt 0:00:27]} Nge7 {[%emt 0:00:14]} 6. O-O {[%emt 0:00:48]} Ba7 {[%emt 0:00:06] C64: Ruy Lopez: Classical Defence (3...Bc5) except 4 0-0 Nf6.} 7. d4 {[%emt 0:00:18]} Ng6 {[%emt 0:00:20]} 8. Bg5 {[%emt 0:00:29]} f6 {[%emt 0:00:21] White is slightly better.} 9. Be3 {[%emt 0:00:08]} O-O {[%emt 0:00:30]} 10. Nbd2 {[%emt 0:00:40]} d6 {[%emt 0:01:14]} 11. Re1 {[%emt 0:00:28]} Kh8 {[%emt 0:00:08]} 12. h3 {[%emt 0:00:22]} exd4 {[%emt 0:00:52]} 13. Nxd4 {[%emt 0:00:25]} Nxd4 {[%emt 0:01:31] [#]} 14. cxd4 $146 {[%emt 0:00:13]} ({Predecessor:} 14. Bxd4 f5 15. Bxa7 Rxa7 16. Nf3 fxe4 17. Rxe4 Bf5 18. Re3 b5 19. Bb3 c5 20. a4 {1-0 (60) Dominguez Perez,L (2760)-Nabaty,T (2678) Netanya 2019}) 14... Be6 {[%emt 0:03:30]} 15. d5 {[%emt 0:07:14]} Bxe3 {[%emt 0:00:13]} 16. Rxe3 {[%emt 0:00:08]} Bg8 {[%emt 0:00:05]} 17. Nf3 {[%emt 0:56:18]} f5 {[%emt 0:01:45]} 18. exf5 {[%emt 0:00:06]} Nf4 {[%emt 0:11:46]} 19. Qd2 {[%emt 0:06:03]} Qf6 {[%emt 0:07:24]} ({Much worse is} 19... Bxd5 20. Bc2 $15) 20. Bc2 {[%emt 0:00:19]} Bxd5 {[%emt 0:20:08]} 21. Rae1 {[%emt 0:06:07]} c6 {[%emt 0:06:35][%cal Of4g2] [#] Threatens to win with ...Nxg2!} (21... Bxa2 $2 22. b3 $18) 22. Qb4 {[%emt 0:04:48]} Bxf3 $2 {[%emt 0:20:59] This move loses the game for Black.} (22... Qh6 $11) 23. Rxf3 $18 {[%emt 0:01:29]} Nd5 {[%emt 0:00:06][%cal Bf4d5,Bd5b4,Bb4a2][%mdl 32]} 24. Qxb7 {[%emt 0:00:32]} Rab8 {[%emt 0:00:31]} 25. Qxc6 {[%emt 0:02:55]} Nb4 {[%emt 0:00:07]} 26. Qc3 {[%emt 0:01:47]} Qxc3 {[%emt 0:12:34]} 27. Rxc3 {[%emt 0:00:05] Bb1 is the strong threat.} Nxa2 {[%emt 0:00:05]} 28. Rc7 {[%emt 0:01:10] [#] And now Ree7 would win.} Nb4 {[%emt 0:01:12]} 29. Bb1 {[%emt 0:02:48]} Rfc8 {[%emt 0:05:28]} 30. Rd7 {[%emt 0:00:38]} Rd8 {[%emt 0:00:51]} 31. Ree7 {[%emt 0:01:39]} Rxd7 {[%emt 0:00:11]} 32. Rxd7 {[%emt 0:00:02][%mdl 4096] Endgame KRB-KRN} d5 {[%emt 0:00:06]} 33. f6 {[%emt 0:03:12]} gxf6 {[%emt 0:01:36]} 34. Rxh7+ {[%emt 0:00:34]} Kg8 {[%emt 0:00:01]} 35. Rd7 {[%emt 0:00:27]} Kf8 {[%emt 0:00:58]} 36. Bg6 {[%emt 0:00:19]} Nc6 {[%emt 0:02:39]} 37. Rf7+ {[%emt 0:00:33]} Kg8 {[%emt 0:00:01]} 38. Rxf6 {[%emt 0:00:07]} Ne5 {[%emt 0:00:20]} 39. Rxa6 {[%emt 0:01:15]} Rxb2 {[%emt 0:00:24]} 40. Bf5 {[%emt 0:00:25]} d4 {[%emt 0:00:06]} 41. f4 {[%emt 0:31:03]} Nf7 {[%emt 0:32:08]} 42. Be6 {[%emt 0:00:00]} Kf8 {[%emt 0:00:00]} 43. Kh2 {[%emt 0:00:00]} d3 $2 {[%emt 0:00:00]} (43... Rb4 44. Kg3 d3 45. Bxf7 Kxf7) 44. Bxf7 {[%emt 0:00:00] White is clearly winning.} Kxf7 {[%emt 0:00:00]} 45. Rd6 {[%emt 0:00:00]} d2 {[%emt 0:00:00]} 46. Kg3 {[%emt 0:00:00]} Ke7 {[%emt 0:00:00]} 47. Rd4 {[%emt 0:00:00]} Ke6 {[%emt 0:00:00]} 48. Kf3 {[%emt 0:00:00]} Kf6 {[%emt 0:00:00]} 49. h4 {[%emt 0:00:00] Weighted Error Value: White=0.06 (flawless) /Black=0.19 (very precise)} 1-0

[Event "FRA-ch Teams Top 16-B 2022"]
[Site "Chartres"]
[Date "2022.06.10"]
[Round "2.12"]
[White "Brochet, Philippe"]
[Black "Hamdouchi, Hicham"]
[Result "1/2-1/2"]
[ECO "B23"]
[WhiteElo "2390"]
[BlackElo "2536"]
[Annotator "TA"]
[PlyCount "111"]
[EventDate "2022.06.09"]
[EventType "team-tourn"]
[EventCountry "FRA"]
[SourceTitle "playchess.com"]
[Source "ChessBase"]
[SourceQuality "1"]
[TimeControl "40/5400+30:1800+30"]

{[%evp 9,111,-4,-2,0,0,2,11,-3,11,9,20,-3,8,11,11,0,15,19,25,-56,-40,-62,25,-19,-15,-16,-11,-10,-8,-35,-27,-20,37,0,0,0,0,0,0,0,0,0,0,0,0,0,28,44,60,29,19,29,29,29,26,30,35,8,54,10,12,5,13,0,0,0,0,0,0,0,0,0,161,161,161,161,465,510,503,510,496,445,494,505,509,509,509,453,445,437,495,204,436,50,50,0,0,0,7,0,0,0,8,0]} 1. e4 {[%emt 0:10:14]} c5 {[%emt 0:00:25]} 2. Nc3 {[%emt 0:00:09]} Nc6 {[%emt 0:00:29]} 3. Bb5 {[%emt 0:00:14]} Nd4 {[%emt 0:01:15]} 4. Bd3 {[%emt 0:01:06]} a6 {[%emt 0:01:03]} 5. f4 {[%emt 0:03:46] [#]} d6 $146 {[%emt 0:01:19]} ({Predecessor:} 5... g6 6. Nf3 Bg7 7. Nxd4 cxd4 8. Ne2 d6 9. O-O e6 10. b3 Ne7 11. Bb2 Nc6 12. Qe1 O-O 13. Qf2 e5 14. f5 gxf5 15. exf5 Bf6 16. c4 b5 17. Be4 {0-1 (59) Vaysberg,A (2198)-Neyman,I (2314) Ditzingen 2012}) 6. Nf3 {[%emt 0:01:07] B23: Closed Sicilian: Lines without g3.} Bg4 {[%emt 0:05:00]} 7. Be2 {[%emt 0:01:19]} Bxf3 {[%emt 0:01:12]} 8. Bxf3 {[%emt 0:00:10]} e6 {[%emt 0:00:21]} 9. d3 {[%emt 0:08:05]} Ne7 {[%emt 0:01:29]} 10. Be3 {[%emt 0:00:33]} Nec6 {[%emt 0:02:23]} 11. O-O {[%emt 0:01:05]} g6 {[%emt 0:07:33]} 12. g3 {[%emt 0:14:20]} Bg7 {[%emt 0:11:05]} 13. Bg2 {[%emt 0:01:07]} O-O {[%emt 0:02:16]} 14. Ne2 {[%emt 0:04:41]} (14. a3 $11) 14... Nxe2+ $15 {[%emt 0:13:22]} 15. Qxe2 {[%emt 0:00:08]} b5 {[%emt 0:00:26]} (15... Bxb2 $15 16. Rab1 Nd4) 16. e5 {[%emt 0:09:29]} Rc8 {[%emt 0:02:06]} 17. c3 {[%emt 0:07:08]} dxe5 {[%emt 0:15:44]} 18. Bxc5 {[%emt 0:00:58] [#] Hoping for Bxc6.} Ne7 {[%emt 0:07:45]} 19. Ba3 {[%emt 0:05:40] This bishop pair is nice.} exf4 {[%emt 0:05:32]} 20. Rxf4 {[%emt 0:00:58]} e5 {[%emt 0:02:51] Against d4} ({Better is} 20... Qd7 $11) 21. Re4 {[%emt 0:03:39][%cal Od3d4]} (21. Rf2 {with more complications.} a5 22. Raf1 Re8 23. Rxf7 b4 24. cxb4 axb4 25. Rxg7+ Kxg7 26. Qxe5+ Kg8 27. Qe6+) 21... Re8 {[%emt 0:03:29]} 22. d4 {[%emt 0:01:18]} Nc6 {[%emt 0:01:10][%cal Be7c6,Bc6e5,Be5c4][%mdl 32] ...f5 is the strong threat.} 23. dxe5 {[%emt 0:07:21]} Nxe5 {[%emt 0:02:29]} 24. Rd1 {[%emt 0:01:56]} Qb6+ {[%emt 0:00:21]} 25. Kh1 {[%emt 0:00:25]} Red8 {[%emt 0:01:37]} 26. Red4 {[%emt 0:04:14]} Nc4 {[%emt 0:05:34]} 27. Bc5 {[%emt 0:03:58]} Bxd4 {[%emt 0:02:15]} 28. Bxb6 {[%emt 0:00:14]} Bxb6 {[%emt 0:00:03]} 29. Bb7 {[%emt 0:07:57]} Rxd1+ {[%emt 0:00:51]} 30. Qxd1 {[%emt 0:00:02]} Rd8 {[%emt 0:00:13]} 31. Qc1 {[%emt 0:01:59]} Ne3 {[%emt 0:01:48]} 32. Bf3 {[%emt 0:00:01] Against Rd1+} Rd6 {[%emt 0:00:38]} 33. b3 {[%emt 0:00:57]} h5 {[%emt 0:01:11]} (33... Rf6 $11 34. Be2 Rf2) 34. c4 {[%emt 0:00:23]} bxc4 {[%emt 0:00:31]} 35. bxc4 {[%emt 0:00:02] [#] Strongly threatening c5.} Bc5 {[%emt 0:00:12]} (35... Rf6 $5 {[%cal Rf6f3]} 36. Be2 Rf2 $11) 36. h3 {[%emt 0:01:00]} Rf6 {[%emt 0:00:47]} 37. Be2 {[%emt 0:00:35]} Rf2 {[%emt 0:00:12]} 38. Qb2 {[%emt 0:00:40]} Nf5 {[%emt 0:01:48]} (38... Nf1 $5 39. Qb8+ Kh7 40. Bxf1 Rxf1+ 41. Kh2 Rf2+ 42. Kh1 Rf1+ 43. Kh2 Rf2+ 44. Kh1 Rf1+ $11) 39. Qb8+ {[%emt 0:00:24]} Kh7 {[%emt 0:00:29]} 40. Bd3 {[%emt 0:00:36]} Bd6 $2 {[%emt 0:00:36]} (40... Rf3 $11 41. Qd8 (41. Bxf5 Rf1+ 42. Kh2 Rf2+ 43. Kh1 Rf1+ 44. Kh2 Rf2+ 45. Kh1 Rf1+ $11) 41... Bd4 42. Bxf5 Rf1+ 43. Kh2 Rf2+ 44. Kg1 (44. Kh1 Rf1+ 45. Kh2 Rf2+ 46. Kg1 Rf4+ 47. Kh2 Rf2+ $11) 44... Rf4+ 45. Kh2 Rf2+ 46. Kg1 (46. Kh1 Rf1+ 47. Kh2 Rf2+ $11) 46... Rf4+ 47. Kh2 Rf2+) 41. Qb6 $18 {[%emt 0:09:48][%csl LRa6,LRf2]} Bxg3 {[%emt 0:14:51]} 42. Bxf5 {[%emt 0:03:20]} gxf5 {[%emt 0:02:43][%mdl 4096] Endgame KQ-KRB} (42... Rxf5 {is more resistant.} 43. Qxa6 Kg7) 43. Qf6 {[%emt 0:05:16]} f4 {[%emt 0:00:49]} 44. Qxf7+ {[%emt 0:00:14]} Kh6 {[%emt 0:00:05]} 45. Qf6+ {[%emt 0:01:14]} Kh7 {[%emt 0:00:05]} 46. h4 {[%emt 0:01:27]} Rh2+ {[%emt 0:10:59]} 47. Kg1 {[%emt 0:00:03]} Rxh4 {[%emt 0:00:08]} 48. Qf5+ {[%emt 0:04:39]} Kh6 {[%emt 0:01:31]} 49. Qf8+ {[%emt 0:01:36]} Kg5 {[%emt 0:00:46]} 50. Qg7+ {[%emt 0:03:56]} Kf5 {[%emt 0:00:08][%cal Of4f3]} 51. Qf7+ $2 {[%emt 0:01:26]} ({White has to play} 51. c5 $18 {And now c6 would win.} f3 52. c6 (52. Qxg3 $2 Rg4 $19)) 51... Ke4 $14 {[%emt 0:01:37]} 52. Qd5+ {[%emt 0:00:35]} ({White should try} 52. c5 $1 $14 f3 53. c6) 52... Ke3 $11 {[%emt 0:00:08] The position is equal.} 53. Qe5+ {[%emt 0:00:11]} Kf3 {[%emt 0:01:37]} 54. Qd5+ {[%emt 0:02:05]} Ke3 {[%emt 0:00:07]} 55. Qe5+ {[%emt 0:01:39]} Kf3 {[%emt 0:00:11] ( -> ...Bf2+)} 56. Qd5+ {[%emt 0:00:30] Weighted Error Value: White=0.26 (precise) /Black=0.22 (precise)} 1/2-1/2

[Event "FRA-ch Teams Top 16-B 2022"]
[Site "Chartres"]
[Date "2022.06.10"]
[Round "2.13"]
[White "Vocaturo, Daniele"]
[Black "Heinz, Timothee"]
[Result "1-0"]
[ECO "C11"]
[WhiteElo "2608"]
[BlackElo "2381"]
[Annotator "TA"]
[PlyCount "127"]
[EventDate "2022.06.09"]
[EventType "team-tourn"]
[EventCountry "FRA"]
[SourceTitle "playchess.com"]
[Source "ChessBase"]
[SourceQuality "1"]
[TimeControl "40/5400+30:1800+30"]

{[%evp 21,127,27,38,0,41,29,41,40,46,41,43,22,27,16,40,39,28,27,19,20,20,18,18,6,0,0,0,0,0,-10,0,0,0,0,0,0,0,0,0,0,0,0,30,0,0,0,0,0,0,0,73,81,78,38,51,32,31,4,8,0,0,0,144,146,154,133,154,152,183,175,221,208,257,262,298,281,289,284,273,242,294,225,230,204,289,304,340,323,412,412,437,371,479,468,476,462,5265,1311,29978,29979,29979,29980,29981,29981,29983,29983,29984,29984]} 1. e4 {[%emt 0:00:13]} e6 {[%emt 0:01:24]} 2. d4 {[%emt 0:00:49]} d5 {[%emt 0:00:04]} 3. Nc3 {[%emt 0:00:24]} Nf6 {[%emt 0:00:07]} 4. e5 {[%emt 0:01:02]} Nfd7 {[%emt 0:00:05]} 5. f4 {[%emt 0:00:08]} c5 {[%emt 0:00:06]} 6. Nf3 {[%emt 0:00:20]} Nc6 {[%emt 0:00:07]} 7. Be3 {[%emt 0:00:21]} cxd4 {[%emt 0:01:15]} 8. Nxd4 {[%emt 0:00:15]} Bc5 {[%emt 0:00:26]} 9. Qd2 {[%emt 0:01:21]} Bxd4 {[%emt 0:00:16]} 10. Bxd4 {[%emt 0:00:07]} Nxd4 {[%emt 0:00:04]} 11. Qxd4 {[%emt 0:00:09]} Qb6 {[%emt 0:00:05]} 12. Qd2 {[%emt 0:04:55] C11: French: Classical System: 4 e5 and 4 Bg5 dxe4.} Nc5 {[%emt 0:02:54]} 13. O-O-O {[%emt 0:03:34]} Bd7 {[%emt 0:00:14]} 14. h4 {[%emt 0:04:38] White is slightly better.} Na4 {[%emt 0:13:23]} 15. Nxa4 {[%emt 0:03:28]} Bxa4 {[%emt 0:00:05] [#]} 16. Rh3 $146 {[%emt 0:01:05]} ({Predecessor:} 16. Qd4 Qxd4 17. Rxd4 Bc6 18. Bd3 f5 19. h5 O-O 20. Be2 Rf7 21. h6 Raf8 22. Kd2 Re7 23. g4 fxg4 24. Bxg4 Be8 25. Ke3 Bg6 26. c3 gxh6 {½-½ (26) Caruana,F (2649)-Huebner,R (2595) Senigallia 2009}) 16... Rc8 {[%emt 0:04:13]} 17. Bd3 {[%emt 0:08:50]} Bb5 {[%emt 0:06:38]} 18. f5 {[%emt 0:06:13]} Bxd3 {[%emt 0:02:02]} 19. Rxd3 {[%emt 0:00:06]} exf5 {[%emt 0:03:21]} 20. Rb3 {[%emt 0:03:23]} Qc7 {[%emt 0:07:14]} 21. Rc3 {[%emt 0:01:39]} Qb8 $1 {[%emt 0:00:58]} 22. Rxc8+ {[%emt 0:10:01]} Qxc8 $11 {[%emt 0:00:06][%mdl 4096] Endgame KQR-KQR} 23. Qb4 {[%emt 0:00:08]} h5 {[%emt 0:15:42]} 24. Qd6 {[%emt 0:08:14]} Rh6 {[%emt 0:02:54]} 25. Qxd5 {[%emt 0:00:04]} Rc6 {[%emt 0:05:04]} 26. c3 {[%emt 0:00:06]} Qc7 {[%emt 0:01:41]} 27. Qd4 {[%emt 0:08:23]} b6 {[%emt 0:03:46]} 28. Qf4 {[%emt 0:07:17]} Re6 {[%emt 0:04:32]} 29. Rd5 {[%emt 0:01:37]} Qc6 {[%emt 0:06:03]} 30. Qd4 {[%emt 0:02:23]} Qc7 {[%emt 0:01:03] Against Rd8+} 31. a3 {[%emt 0:04:17]} g6 {[%emt 0:01:00]} 32. Kb1 {[%emt 0:00:43]} Rc6 {[%emt 0:02:30]} 33. Qf4 {[%emt 0:01:07]} Kf8 {[%emt 0:04:53]} 34. Qh6+ {[%emt 0:01:33]} Kg8 {[%emt 0:00:39]} 35. Qd2 {[%emt 0:00:46]} Rc5 {[%emt 0:04:31]} (35... Kg7 $11) 36. Rd8+ $16 {[%emt 0:02:18]} Kg7 {[%emt 0:00:05]} 37. e6 {[%emt 0:00:22] White is more active.} Qe5 {[%emt 0:02:40]} 38. exf7 {[%emt 0:02:48]} Kxf7 {[%emt 0:00:05]} 39. Rd7+ {[%emt 0:00:47]} Ke6 {[%emt 0:00:15]} 40. Rxa7 $40 {[%emt 0:01:45][%mdl 128] Qd7+ would kill now. White mounts an attack.} Rd5 {[%emt 0:02:48] Against Qd7+} 41. Qf2 {[%emt 0:31:34]} Rd1+ {[%emt 0:05:37] [#] White now steadily converts the win.} (41... Qe4+ $1 $11 42. Kc1 Rd6) 42. Kc2 $1 {[%emt 0:00:00] Dancing on a razor blade.} (42. Ka2 $6 Qd5+ 43. c4 Qxc4+ 44. b3 Qe4 45. Qxb6+ Rd6 $11) 42... Rd6 {[%emt 0:00:05]} 43. Ra4 {[%emt 0:00:00] Prevents Qe4+.} Kf7 {[%emt 0:07:08]} 44. Rb4 {[%emt 0:00:00]} Ke7 {[%emt 0:04:14]} ({Weaker is} 44... Qd5 45. Rd4 Qc6 46. Rxd6 Qxd6 47. c4 $16) 45. a4 {[%emt 0:00:00]} ({Don't play} 45. Rxb6 Qe4+ 46. Kc1 Rxb6 47. Qxb6 Qxg2 $16) 45... Qe6 {[%emt 0:01:24]} (45... Kd7 $142 46. Rd4 (46. Rxb6 Qe4+ 47. Kc1 Rxb6 $14) 46... Kc7) 46. g3 {[%emt 0:00:00]} Kf7 {[%emt 0:02:52]} 47. Rd4 {[%emt 0:00:00]} Rc6 {[%emt 0:01:10]} 48. Qd2 {[%emt 0:00:00]} Rc7 {[%emt 0:00:43]} 49. Qd3 {[%emt 0:00:00]} Qe8 {[%emt 0:02:25]} 50. Rb4 {[%emt 0:00:00] Threatens to win with Qd5+.} Qe6 {[%emt 0:00:30]} 51. Qb5 {[%emt 0:00:00]} Rc6 {[%emt 0:02:23]} 52. Rd4 {[%emt 0:00:00]} Kf6 {[%emt 0:00:49]} (52... Rc7 $142 53. Rd8 Qe4+ 54. Kb3 Qe6+ 55. Qd5 Qxd5+ 56. Rxd5 Ke6) 53. Qd3 $18 {[%emt 0:00:00]} Ke7 {[%emt 0:01:16]} 54. Rd5 {[%emt 0:00:00]} Rc5 {[%emt 0:02:20]} 55. Rxc5 {[%emt 0:00:00]} bxc5 {[%emt 0:00:02] KQ-KQ} 56. a5 {[%emt 0:00:00][%cal Ba4a5,Ba5a6,Ba6a7][%mdl 32]} c4 {[%emt 0:00:17]} 57. Qd4 {[%emt 0:00:00]} Qe2+ {[%emt 0:00:40]} 58. Kb1 {[%emt 0:00:00] [#] Black must now prevent a6.} Qe1+ {[%emt 0:00:04]} (58... Qe6 $142 59. Qa7+ Qd7 60. Qc5+ Kd8 61. Qxc4 f4 62. gxf4 Qf5+ 63. Kc1 Qxa5 64. Qg8+ Kc7 65. Qxg6 Qd5) 59. Ka2 {[%emt 0:00:00] White wants to mate with a6.} Qxg3 {[%emt 0:00:05]} 60. a6 {[%emt 0:00:06] White mates.} Qc7 {[%emt 0:00:31]} 61. a7 {[%emt 0:02:12]} Qa5+ {[%emt 0:00:54]} 62. Kb1 {[%emt 0:00:05]} Qa4 {[%emt 0:00:20]} 63. Qe5+ {[%emt 0:01:07]} Kd7 {[%emt 0:01:49]} 64. Qd5+ {[%emt 0:00:06] Weighted Error Value: White=0.06 (flawless) /Black=0.35} 1-0

[Event "FRA-ch Teams Top 16-B 2022"]
[Site "Chartres"]
[Date "2022.06.10"]
[Round "2.14"]
[White "Godart, Francois"]
[Black "Delorme, Axel"]
[Result "1/2-1/2"]
[ECO "A84"]
[WhiteElo "2399"]
[BlackElo "2461"]
[Annotator "TA"]
[PlyCount "43"]
[EventDate "2022.06.09"]
[EventType "team-tourn"]
[EventCountry "FRA"]
[SourceTitle "playchess.com"]
[Source "ChessBase"]
[SourceQuality "1"]
[TimeControl "40/5400+30:1800+30"]

{[%evp 14,43,34,19,39,32,29,27,44,29,35,13,19,17,23,0,0,0,41,38,35,35,47,38,47,45,75,75,72,68,75,50]} 1. d4 {[%emt 0:01:43]} d5 {[%emt 0:02:03]} 2. c4 {[%emt 0:00:10]} e6 {[%emt 0:00:13]} 3. Nf3 {[%emt 0:00:08]} c6 {[%emt 0:00:24]} 4. e3 {[%emt 0:01:41]} f5 {[%emt 0:00:58]} 5. Bd3 {[%emt 0:00:26]} Nf6 {[%emt 0:00:25]} 6. O-O {[%emt 0:00:18]} Bd6 {[%emt 0:00:46]} 7. b3 {[%emt 0:04:48]} Qe7 {[%emt 0:05:24]} 8. a4 {[%emt 0:02:10]} Ne4 {[%emt 0:15:48] A84: Dutch Defence: 2 c4 Miscellaneous.} 9. Ba3 {[%emt 0:02:34]} Bxa3 {[%emt 0:00:48]} 10. Nxa3 {[%emt 0:00:09]} Nd7 {[%emt 0:01:18] White has an edge.} 11. Qc2 {[%emt 0:09:04]} O-O {[%emt 0:03:38]} 12. Qb2 {[%emt 0:03:17]} a5 {[%emt 0:07:40]} 13. Nc2 {[%emt 0:02:09]} b6 {[%emt 0:04:04] [#]} 14. b4 $146 {[%emt 0:06:18]} ({Predecessor:} 14. Rfc1 Bb7 15. Bf1 f4 16. Re1 c5 17. cxd5 exd5 18. exf4 Rxf4 19. Nd2 Qf6 20. Nxe4 dxe4 {0-1 (28) Maric,A (2400)-Polgar,Z (2550) Tilburg 1994}) 14... Ba6 {[%emt 0:14:44]} 15. b5 {[%emt 0:20:49]} cxb5 {[%emt 0:01:11]} 16. cxb5 {[%emt 0:01:24]} Bb7 {[%emt 0:00:13]} 17. Rfc1 {[%emt 0:01:12]} Rac8 {[%emt 0:06:19]} 18. Nce1 {[%emt 0:01:52]} Nd6 {[%emt 0:11:33]} 19. Qa3 {[%emt 0:15:10]} Rxc1 {[%emt 0:00:42]} 20. Rxc1 {[%emt 0:00:12] [#] aiming for Rc7.} Rc8 {[%emt 0:00:18] Inhibits Rc7.} 21. Rxc8+ {[%emt 0:03:31]} Nxc8 {[%emt 0:01:11]} 22. Qxe7 {[%emt 0:03:46] Weighted Error Value: White=0.07 (flawless) /Black=0.09 (flawless)} 1/2-1/2